Cogmind - Beta 14 @@@ ROGUE MODE // 2024.10.27 @ 11:49:37 Player: corey Result: Destroyed by P-60 Hacker with Shock Rifle Performance ------------- Evolutions (3) 1500 Regions Visited (5) 1000 Robots Destroyed (79) 395 Value Destroyed (2547) 2547 Prototype IDs (0) 0 Alien Tech Used (0) 0 Bonus (165) 165 TOTAL SCORE: 5607 Bonus ------- High Alert Combat Kills 165 Cogmind --------- Core Integrity 0/700 Matter 280/300 Energy 89/100 System Corruption 0% Temperature Cool (0) Movement Walking (120) Location -7/Factory Parts ------- > --- POWER (2) -------- (None) > --- PROPULSION (3) --- Aluminum Leg Carbon-fiber Leg Compact Wheel > --- UTILITY (6) ------ Large Storage Unit Signal Interpreter Improved Targeting Computer Advanced Targeting Computer > --- WEAPON (2) ------- (None) > --- INVENTORY (15) --- Improved Heat Sink Visual Processing Unit Advanced Visual Processing Unit Improved Terrain Scanner Recoil Stabilizer ECM Suite Advanced ECM Suite Reaction Control System Component Analysis Suite Improved Trap Extractor (0/6) Peak State ------------ > --- POWER ------------ Light Nuclear Core > --- PROPULSION ------- Improved Titanium Leg Light Armored Exoskeleton > --- UTILITY ---------- Cryofiber Web Large Storage Unit Signal Interpreter Improved Targeting Computer Advanced Targeting Computer Recoil Stabilizer > --- WEAPON ----------- Gatling Laser Flak Gun > --- INVENTORY -------- Improved Heat Sink Medium Matter Pod Visual Processing Unit Advanced Visual Processing Unit Improved Terrain Scanner Recoil Stabilizer ECM Suite Advanced ECM Suite Reaction Control System Hardened Medium Armor Plating Improved Trap Extractor Autogun [Rating: 39] Favorites ----------- Power Light Ion Engine Engine Light Ion Engine Power Core Light Nuclear Core Propulsion Aluminum Leg Treads Improved Treads Leg Aluminum Leg Wheel Compact Wheel Utility Improved Targeting Computer Device ECM Suite Storage Large Storage Unit Processor Improved Targeting Computer Protection Improved Utility Shielding Weapon Improved Light Cannon Energy Gun Medium Laser Ballistic Gun Heavy Assault Rifle Ballistic Cannon Improved Light Cannon Launcher Mini Grenade Launcher Build | -11 -10 -9 -9 -8 -7 ------- Run | Yrd Mat Mat Min Mat Fac Slots Evolved 6 | . . 2 . 2 2 Power 1 | . . 1 . . . Propulsion 1 | . . . . 1 . Utility 4 | . . 1 . 1 2 Weapon . | . . . . . . Parts Attached 88 | 5 14 9 1 26 33 Power 14 | 1 2 2 . 5 4 Engine 12 | 1 2 2 . 4 3 Core 2 | . . . . 1 1 Reactor . | . . . . . . Propulsion 28 | 2 2 2 . 11 11 Treads 6 | . . 2 . 4 . Leg 18 | 2 . . . 7 9 Wheel 4 | . 2 . . . 2 Hover . | . . . . . . Flight . | . . . . . . Utility 15 | 1 3 1 . 5 5 Device 3 | . . 1 . . 2 Storage 7 | 1 2 . . 3 1 Processor 3 | . 1 . . 1 1 Hackware . | . . . . . . Protection 2 | . . . . 1 1 Artifact . | . . . . . . Weapon 31 | 1 7 4 1 5 13 Energy Gun 3 | . 2 . . . 1 Energy Cannon . | . . . . . . Ballistic Gun 13 | 1 2 . . 1 9 Ballistic Cannon 14 | . 3 3 1 4 3 Launcher 1 | . . 1 . . . Special Weapon . | . . . . . . Impact Weapon . | . . . . . . Slashing Weapon . | . . . . . . Piercing Weapon . | . . . . . . Special Melee Weapon . | . . . . . . Unidentified Prototypes . | . . . . . . Parts Lost 26 | . 1 1 . 3 21 Power 9 | . 1 1 . 1 6 Propulsion 6 | . . . . 1 5 Utility 5 | . . . . . 5 Weapon 6 | . . . . 1 5 Highest Loss Streak 10 | . 1 1 . 2 10 To Critical Strikes . | . . . . . . Average Slot Usage (%) 89 | . 98 91 88 92 81 Engine 10 | . 13 14 11 11 7 Treads 6 | . . 2 22 9 . Leg 13 | . 19 . . 15 15 Wheel 3 | . 8 18 . . . Device 5 | . . 11 11 2 7 Storage 10 | . 14 11 11 12 7 Processor 17 | . 13 11 11 18 23 Protection 2 | . . . . 3 5 Energy Gun 1 | . 5 . . . 1 Ballistic Gun 6 | . 16 7 . 3 6 Ballistic Cannon 9 | . 5 11 11 13 4 Launcher 1 | . . 3 11 . . Peak Build Rating 39 | 5 10 15 14 28 39 Average Rating 20 | 2 8 12 14 20 31 On Entrance 11 | . 5 9 14 14 28 Naked Turns . | . . . . . . Heaviest Build 47 | 10 28 38 30 46 47 Greatest Support 66 | 20 32 43 43 66 60 Greatest Overweight (x) 9 | 2 6 1 . 1 9 Average Overweight (x) . | . . . . . . Largest Inventory Capacity 15 | 8 15 15 15 15 15 Average Capacity 14 | 7 9 15 15 15 15 Most Carried 15 | 5 10 14 15 15 15 Average Carried 12 | 2 6 9 13 14 13 Final Capacity 15 | 8 15 15 15 15 15 Final Carried 15 | 2 10 12 15 15 10 Class Distribution -------------------- 83% | Mutant 16% | Scavenger-Mutant Dominant Class ---------------- Mutant | -10/Materials Mutant | -9/Materials Mutant | -9/Mines Mutant | -8/Materials Mutant | -7/Factory Resources | -11 -10 -9 -9 -8 -7 ----------- Run | Yrd Mat Mat Min Mat Fac Matter Collected 2388 | 127 428 188 114 677 854 Remotely . | . . . . . . Salvage Created 2213 | . 453 202 22 629 907 Parts 118 | . 25 18 5 30 40 Haulers Intercepted . | . . . . . . Recyclers Shooed 7 | . 4 . . . 3 Parts Field Recycled . | . . . . . . Retrieved Matter . | . . . . . . Parts Self-Destructed . | . . . . . . Prevented . | . . . . . . Kills | -11 -10 -9 -9 -8 -7 ------- Run | Yrd Mat Mat Min Mat Fac Combat Hostiles Destroyed 61 | . 10 6 4 17 24 Guns 20 | . 6 2 . 1 11 Cannons 35 | . 4 4 . 15 12 AOE 6 | . . . 4 1 1 Classes Destroyed 10 | . 5 3 . 1 1 Worker 5 | . 1 . . 1 3 Builder 1 | . . . . 1 . Tunneler 3 | . . 2 . . 1 Recycler 2 | . 2 . . . . Operator 2 | . . 1 . 1 . Watcher 5 | . 1 1 . 1 2 Swarmer 15 | . 3 2 4 . 6 Grunt 32 | . 7 3 . 9 13 Sentry 13 | . . 1 . 8 4 Hunter 1 | . . . . . 1 Best Kill Streak 5 | . 4 5 4 4 4 Combat Bots Only 4 | . 3 2 4 3 4 Max Kills in Single Turn 4 | . 1 2 4 1 2 Gunslinging . | . . . . . . Exploded 4 | . . . 4 1 1 Melee . | . . . . . . Uniques/NPCs Destroyed . | . . . . . . Combat | -11 -10 -9 -9 -8 -7 -------- Run | Yrd Mat Mat Min Mat Fac Hostile Shots Fired 873 | . 57 31 2 93 690 Missed 364 | . 17 7 1 27 312 Damage Taken 5784 | . 423 291 7 1004 4059 Core 947 | . 131 10 7 97 702 Absorbed by Shields . | . . . . . . Redirected to Shielding 100 | . . . . 11 89 Regen/Repaired (Parts) 30 | . . . . 30 . Core Remaining (%) 81 | 100 47 . 95 82 . Volleys Fired 219 | . 42 23 1 64 89 Largest 2 | . 2 2 2 2 2 Hottest 108 | . 70 78 69 83 108 Shots Fired 397 | . 81 43 2 115 156 Gun 205 | . 66 24 . 19 96 Cannon 183 | . 15 16 1 91 60 Launcher 9 | . . 3 1 5 . Special . | . . . . . . Kinetic 349 | . 57 40 1 110 141 Thermal 39 | . 24 . . . 15 Explosive 9 | . . 3 1 5 . Electromagnetic . | . . . . . . Robot Hit Streak 22 | . 14 6 . 19 22 Robot Miss Streak 6 | . 4 4 . 3 6 Penetration Max . | . . . . . . Secondary Targets 3 | . 1 1 . . 1 Max Gunslinging Chain 1 | . 1 1 . . 1 Shots Hit Robots 287 | . 57 23 . 85 122 Core Hits 171 | . 27 15 4 38 87 Critical Kills . | . . . . . . Critical Parts Destroyed . | . . . . . . Critical Strikes 13 | . 5 3 . 4 1 Burn 4 | . 4 . . . . Blast 9 | . 1 3 . 4 1 Melee Attacks . | . . . . . . Impact . | . . . . . . Slashing . | . . . . . . Piercing . | . . . . . . Sneak Attacks . | . . . . . . Combat Hostiles . | . . . . . . Follow-up Attacks . | . . . . . . Damage Inflicted 6054 | . 810 522 158 1919 2645 Guns 2237 | . 585 108 . 199 1345 Cannons 3079 | . 225 222 . 1483 1149 Explosions 731 | . . 192 154 236 149 Melee . | . . . . . . Ramming 7 | . . . 4 1 2 Kinetic 4691 | . 596 330 . 1682 2083 Thermal 774 | . 214 . . . 560 Explosive 582 | . . 192 154 236 . Electromagnetic . | . . . . . . Impact . | . . . . . . Slashing . | . . . . . . Piercing . | . . . . . . Highest Corruption . | . . . . . . Average Corruption . | . . . . . . Corruption Purged . | . . . . . . Corruption Blocked . | . . . . . . Overload Shots . | . . . . . . Overflow Damage 107 | . . 10 27 25 45 Projectiles 19 | . . 10 . 9 . Explosions 88 | . . . 27 16 45 Melee . | . . . . . . Knockbacks 29 | . 3 2 1 7 16 Impact 1 | . . . 1 . . Kinetic 26 | . 3 2 . 6 15 Secondary 2 | . . . . 1 1 Self-Inflicted Damage 180 | . . 49 . 41 90 Shots 5 | . . 2 . 1 2 Rammed 2 | . . . 1 1 . Targets Rammed 5 | . . . 1 1 3 Kicked 3 | . . . . . 3 Crushed . | . . . . . . Highest Temperature 205 | . 205 39 . 91 42 Average Temperature 38 | . 85 14 . 16 17 Received Heat Transfer 2049 | . 195 39 . 504 1311 Siege Activations . | . . . . . . Robots Corrupted . | . . . . . . Combat Hostiles . | . . . . . . Parts Fried . | . . . . . . Impact Corruptions . | . . . . . . Robots Melted . | . . . . . . Combat Hostiles . | . . . . . . Parts Melted 2 | . . . . . 2 Heat Transferred 1950 | . 925 . . . 1025 Parts Sabotaged . | . . . . . . Parts Stolen . | . . . . . . Parts Stripped . | . . . . . . Power Chain Reactions . | . . . . . . Alert | -11 -10 -9 -9 -8 -7 ------- Run | Yrd Mat Mat Min Mat Fac Peak Influence 627 | . 264 296 229 391 627 Initial 126 | . . 35 115 89 126 Average 233 | . 110 163 121 229 379 Maximum Alert Level 2 | . 1 1 1 1 2 Low Security (%) 48 | 100 86 76 94 38 14 Level 1 36 | . 13 23 5 61 31 Level 2 15 | . . . . . 54 Level 3 . | . . . . . . Level 4 . | . . . . . . Level 5 . | . . . . . . High Security . | . . . . . . Max Security . | . . . . . . Squads Dispatched 22 | . 2 2 . 9 9 Investigation 6 | . 1 . . 2 3 Extermination 1 | . . . . . 1 Reinforcement 9 | . 1 2 . 4 2 Assault . | . . . . . . Garrison 6 | . . . . 3 3 Intercept . | . . . . . . Searches Triggered . | . . . . . . Construction Impeded 1 | . . . . 1 . Haulers Reinforced . | . . . . . . Active Scanning Responses . | . . . . . . Cargo Convoy Interrupts . | . . . . . . Stealth | -11 -10 -9 -9 -8 -7 --------- Run | Yrd Mat Mat Min Mat Fac Distress Signals 10 | . 2 2 . 2 4 Communications Jammed . | . . . . . . Distress Signals . | . . . . . . Times Spotted 99 | . 18 11 4 21 45 Peak Tracking Total 8 | . 3 3 4 3 8 Tactical Retreats 3 | . . . . 1 2 Traps | -11 -10 -9 -9 -8 -7 ------- Run | Yrd Mat Mat Min Mat Fac Traps Triggered 3 | . 1 . . . 2 Indirectly . | . . . . . . Trap Hack Attempts . | . . . . . . Triggered . | . . . . . . Disarmed . | . . . . . . Reprogrammed . | . . . . . . Reused . | . . . . . . Traps Extracted . | . . . . . . Installed . | . . . . . . Triggered . | . . . . . . Machines | -11 -10 -9 -9 -8 -7 ---------- Run | Yrd Mat Mat Min Mat Fac Machines Disabled 5 | . . 1 . 2 2 Max in Single Turn 2 | . . 1 . 1 2 Machines Repaired . | . . . . . . Machines Dismantled . | . . . . . . Machines Sabotaged . | . . . . . . Overloaded Fab Kills . | . . . . . . Hacking | -11 -10 -9 -9 -8 -7 --------- Run | Yrd Mat Mat Min Mat Fac Machines Accessed 9 | . 2 1 . 5 1 Terminals 4 | . 1 . . 3 . Fabricators . | . . . . . . Repair Stations 2 | . . . . 1 1 Recycling Units 1 | . 1 . . . . Scanalyzers 2 | . . 1 . 1 . Garrison Access . | . . . . . . Total Hacks 18 | . 3 5 . 8 2 Successful 14 | . 3 5 . 6 . Failed 4 | . . . . 2 2 Catastrophic . | . . . . . . Database Lockouts . | . . . . . . Manual 2 | . 2 . . . . Terminals 4 | . 1 . . 3 . Fabricators . | . . . . . . Repair Stations 5 | . . . . 3 2 Recycling Units 2 | . 2 . . . . Scanalyzers 7 | . . 5 . 2 . Garrison Access . | . . . . . . Terminal Hacks 3 | . 1 . . 2 . Record 3 | . 1 . . 2 . Fabricator Hacks . | . . . . . . Repair Station Hacks 2 | . . . . 2 . Scan Component 1 | . . . . 1 . Repair 1 | . . . . 1 . Recycling Unit Hacks 2 | . 2 . . . . Process 1 | . 1 . . . . Report Inventory 1 | . 1 . . . . Scanalyzer 7 | . . 5 . 2 . Insert Component 4 | . . 3 . 1 . Analyze 3 | . . 2 . 1 . Garrison Access Hacks . | . . . . . . Unauthorized Hacks . | . . . . . . Terminals . | . . . . . . Fabricators . | . . . . . . Repair Stations . | . . . . . . Recycling Units . | . . . . . . Scanalyzers . | . . . . . . Garrison Access . | . . . . . . Data Cores Recovered 1 | . . . . 1 . Used . | . . . . . . Hacking Detections 6 | . 1 1 . 3 1 Full Trace Events 2 | . . . . 1 1 Feedback Events . | . . . . . . Feedback Blocked . | . . . . . . Robot Schematics Acquired . | . . . . . . Robots Built . | . . . . . . Authchips . | . . . . . . Time . | . . . . . . Total Robot Build Rating . | . . . . . . Part Schematics Acquired 3 | . . 2 . 1 . Parts Built . | . . . . . . Authchips . | . . . . . . Time . | . . . . . . Total Part Build Rating . | . . . . . . Parts Repaired 1 | . . . . 1 . Time 38 | . . . . 38 . Parts Recycled . | . . . . . . Recycled Matter 208 | . 208 . . . . Retrieved Matter . | . . . . . . Retrieved Components . | . . . . . . Parts Scanalyzed 3 | . . 2 . 1 . Part Schematics Acquired 3 | . . 2 . 1 . Parts Damaged 1 | . . 1 . . . Bothacking | -11 -10 -9 -9 -8 -7 ------------ Run | Yrd Mat Mat Min Mat Fac Used RIF Installer . | . . . . . . Robots Hacked . | . . . . . . Non-combat . | . . . . . . Combat . | . . . . . . Robot Hacks Applied . | . . . . . . Relay Couplers Released . | . . . . . . Fabnet Peak Effective % . | . . . . . . Robots Rewired . | . . . . . . Allies Hacked . | . . . . . . Hacks Repelled . | . . . . . . Allies | -11 -10 -9 -9 -8 -7 -------- Run | Yrd Mat Mat Min Mat Fac Total Allies . | . . . . . . Largest Group . | . . . . . . Highest-Rated Group . | . . . . . . Highest-Rated Ally . | . . . . . . Total Orders . | . . . . . . Ally Attacks . | . . . . . . Total Damage . | . . . . . . Kills . | . . . . . . Allies Corrupted . | . . . . . . Allies Melted . | . . . . . . Intel | -11 -10 -9 -9 -8 -7 ------- Run | Yrd Mat Mat Min Mat Fac Robot Analysis Total . | . . . . . . Derelict Logs Recovered . | . . . . . . Drone Launches . | . . . . . . Drone Recoveries . | . . . . . . Exploration | -11 -10 -9 -9 -8 -7 ------------- Run | Yrd Mat Mat Min Mat Fac Turns Passed 3274 | 45 472 279 336 1239 903 Spaces Moved 1659 | 26 261 164 201 611 396 Core 13 | 11 1 . . . 1 Treads 449 | . . 22 201 226 . Legs 893 | 15 154 . . 385 339 Wheels 304 | . 106 142 . . 56 Hover . | . . . . . . Flight . | . . . . . . Fastest Speed 50 | 50 100 100 160 123 90 Average Speed 140 | 125 112 116 160 154 138 Slowest Speed 500 | 150 350 160 160 240 500 Overloaded Moves . | . . . . . . Propulsion Burnouts . | . . . . . . Robots Hopped . | . . . . . . Cave-ins Triggered . | . . . . . . Exploration Rate (%) 28 | 4 34 20 38 66 11 Regions Visited 5 Branch Regions 1 Pre-discovered Areas . | . . . . . . Known Exits Taken 1 | . . . . 1 . Unknown Exits Taken 4 | 1 1 1 1 . . Scrap Searched 2 | . . . 2 . . Spaces Dug . | . . . . . . Terrain Destroyed 118 | . . 26 11 31 50 Melee . | . . . . . . Projectile 5 | . . 3 . 2 . AOE 113 | . . 23 11 29 50 Terrain Rammed . | . . . . . . Walls Destroyed . | . . . . . . Machines Disabled . | . . . . . . Actions | -11 -10 -9 -9 -8 -7 --------- Run | Yrd Mat Mat Min Mat Fac Total 2216 | 39 359 213 213 795 597 Wait 110 | . 15 3 5 46 41 Move 1654 | 25 260 163 200 610 396 Hop . | . . . . . . Pick Up 83 | 8 19 9 4 22 21 Fast Attach 12 | . . . . 8 4 Attach 49 | 5 6 7 1 10 20 Detach 2 | . . 1 . 1 . Swap 27 | . 8 2 . 8 9 Drop 55 | 1 9 5 1 25 14 Fire 219 | . 42 23 1 64 89 Melee . | . . . . . . Ram . | . . . . . . Kick 3 | . . . . . 3 Crush 2 | . . . 1 1 . Escape Stasis . | . . . . . . Rewire . | . . . . . . Trap . | . . . . . . Miscellaneous . | . . . . . . Route ------- -11/Scrapyard -10/Materials -9/Materials -9/Mines -8/Materials -7/Factory History --------- Turn | Location | Event 20 | -11/Scrapyard | Discovered new exit (range 14) 46 | -11/Scrapyard | Entered Materials 320 | -10/Materials | Build established: Mutant 407 | -10/Materials | Core integrity fell below 50% 503 | -10/Materials | Discovered new exit (range 10) 518 | -10/Materials | Entered another Materials area 518 | -9/Materials | Evolved 2 slots: Power x1, Utility x1 765 | -9/Materials | Discovered new exit (range 16) 797 | -9/Materials | Entered Mines 984 | -9/Mines | Received a Rocket Launcher from a helpful Derelict 1114 | -9/Mines | Discovered new exit (range 9) 1133 | -9/Mines | Entered Materials 1133 | -8/Materials | Evolved 2 slots: Propulsion x1, Utility x1 1482 | -8/Materials | Met 7R-MNS 2219 | -8/Materials | Repaired Carbon-fiber Leg 2309 | -8/Materials | Discovered new exit (range 15) 2371 | -8/Materials | Identified exit to Factory 2372 | -8/Materials | Entered Factory 2372 | -7/Factory | Evolved 2 slots: Utility x2 2373 | -7/Factory | Caught up to 7R-MNS 2999 | -7/Factory | Garrison activated, responded to threat 3064 | -7/Factory | Core integrity fell below 50% 3094 | -7/Factory | Lost 4 parts (1p1u2w) 3223 | -7/Factory | Core integrity fell below 20% 3273 | -7/Factory | Lost 10 parts (1p3n4u2w) 3275 | -7/Factory | Destroyed by P-60 Hacker with Shock Rifle Last Messages --------------- 03186_ Acquired Wheel. 03186_ Recoil Stabilizer destroyed. 03188_ Acquired 9 matter. 03190_ Acquired Com. Wheel. 03193_ Acquired Aluminum Leg. 03196_ Wheel destroyed. 03196_ Acquired 6 matter. 03198_ Acquired Carbon-fiber Leg. 03204_ Cryofiber Web destroyed. 03206_ ALERT: Rogue bot located, Programmers report to Factory Zone 1H. 03213_ Lgt. Ion Engine destroyed. 03218_ Critical hit (Burn: +37). 03219_ Med. Matter Pod destroyed. 03226_ M-28 Smith destroyed. 03239_ Hrd. Medium Armor Plating destroyed. 03242_ Autogun destroyed. 03242_ Triggered Alarm Trap. 03242_ An alarm sounds. 03242_ ALERT: Alarm triggered, dispatching investigation squad. 03265_ Acquired Component Analysis Suite. Map ----- +----------------------------------------------------+ | ?????????????????????????????????????????????????? | | ?????????????????????????????????????????????????? | | ?????????????????????????????????????????????????? | | ?????????????????????????????????????????????????? | | ?????????????????????????????????????????????????? | | ?????????????????????????????????????????????????? | | ?????????????????????????????????????????????????? | | ?????????????????????????????????????????????????? | | ?????????????????????????????????????????????????? | | ?????????????????????????????????????????????????? | | ?????????????????????????????????????????????????? | | ?????????????????????????????????????????????????? | | ?????????????????????????????????????????????????? | | ?????????????????????????????????????????????????? | | ?????????????????????????????????????????????????? | | ?????????????????????????????????????????????????? | | ?????????????????????????????????????????????????? | | ?????????????????????????????????????????????????? | | ?????????????????????????????????????????????????? | | ?????????????????????????????????????????????????? | | ????????????????????????###########??????????????? | | ????????????????????????# #??????????????? | | ????????????????????????# #??????????????? | | ????????????????????????# #????#?????????? | | ????????????????????????#l g g #??? #?????????? | | ????????????????????????#@""" """ #??? #?????????? | | ????????????????????????# """ """ #?? #?????????? | | ????????????????????????#p""" """ #? #?????????? | | ????????????????????????# Y ## ##????????? | | ????????????????????????########Y## #????????? | | ?????????????????????????# ### #??? | | ?????????????????????????# +??? | | ?????????????????????????# "" ### ! #??? | | ?????????????????????????# "" #????????? | | ?????????????????????????# "T """ ##????????? | | ?????????????????????????# "" """ #?????????? | | ?????????????????????????# "" """ #?????????? | | ?????????????????????????# #?????????? | | ?????????????????????????# """ """ #?????????? | | ?????????????????????????# """ """ #?????????? | | ???????????????########### """ """ #?????????? | | ???????????????# #?????????? | | ???????????????# / ?????? | | ???????????????+ # ""??????? | | ?????#####?????# ################## ##?????????? | | ?????# ! ????# #????????????????? ???????????? | | ??????# ????# #?????????????????????????????? | | ??????# ???# ###########???????????????????? | | ??????# !! ??# ## #???????????????????? | | ??????# !! ?# ## "" """ #???????????????????? | +----------------------------------------------------+ Best States ------------- Heat Dissipation 34 Energy Generation 21 Energy Capacity 440 Matter Stores 375 Matter Capacity 400 Sight Range 16 Terrain Scan Density 10 ECM Strength 1 Base Temperature (-) 100 Armor Coverage 225 Utility Shielding 66 Evasion (%) 55 Targeting Accuracy 14 Recoil Reduction 4 Item Schematics ----------------- Ion Engine | -9/Materials | Scanalyzed Imp. Light Cannon | -9/Materials | Scanalyzed Visual Processing Unit | -8/Materials | Scanalyzed Robot Schematics ------------------ None Fabricated ------------ Nothing Alien Tech Used ----------------- None Achievements -------------- Hey, That's Mine! Troublemaker Challenges ------------ None Game ------ Seed SurveybotSapperCasing Manual? 0 Play Time 01:35:13 Cumulative 9.1 hours Start 2024.10.27 @ 10:10:32 End 2024.10.27 @ 11:49:37 Sessions 1 Manual Loads 0 Difficulty Rogue Special Mode None Game No. 18 Rogue 18 Adventurer 0 Explorer 0 Win Type - Total 0 Types 0/0/0/0/0/0/0/0/0 Lore% 4 Gallery% 11 Achievement% 12 Wizard Run 0 Options --------- Layout 0 ASCII 0 Keyboard 0 Movement Numpad Keybinds 0 Fullscreen 1 Font 24/Tamsyn Map View 56x25 Zoom Use 98% Tactical HUD 1 Map Filters NONE Filters NONE Steam 1 RUN: 1e0c0d11-110b-4ddc-b9c1-b8206f0d1e40